bitfinex/quotes_ETHUSD_20241108
["timestamp","ask_amount","ask_price","bid_price","bid_amount"]
[1731083952543,0.7044241,2916.6,2915.3,0.3573754]
[1731083954337,0.7044241,2916.6,2915.5,4.06394332]
[1731083954542,0.6358,2916.6,2915.6,0.06858249]
[1731083954762,0.6358,2916.6,2915.7,0.55]
[1731083955064,0.6358,2916.6,2915.8,0.06857759]
[1731083955278,0.6358,2916.6,2915.9,0.55]
[1731083956261,0.6358,2916.6,2915.5,4.06394332]
[1731083956475,0.6358,2916.6,2915.6,0.55]
[1731083956672,0.6358,2916.6,2915.6,0.61857928]
[1731083957169,0.6358,2916.6,2915.5,4.06394332]
[1731083957486,0.6358,2916.6,2915.3,0.3573754]
[1731083957632,0.6358,2916.4,2915.3,0.42595864]
[1731083957836,0.6358,2916.2,2915.3,0.42595864]
[1731083958472,0.6358,2916.2,2915.5,4.06394332]
[1731083958632,0.6358,2916.2,2915.3,0.3573754]
[1731083959032,0.7044241,2916.1,2915.3,0.3573754]
[1731083959229,0.9931754,2915.3,2914.5,0.35790016]
[1731083959467,0.6458,2915.1,2914.5,0.35790016]
[1731083959677,0.6358,2914.9,2913.4,0.06862706]
[1731083959831,0.6358,2914.7,2913.6,0.35819309]
[1731083960156,0.6358,2914.5,2913.6,0.35819309]
[1731083960359,0.0686241,2914.4,2913.6,0.35819309]
[1731083960579,0.6358,2914.5,2913.7,0.06862914]
[1731083961041,0.6358,2914.5,2913.6,0.35819309]
[1731083961677,0.7044241,2914.4,2913.6,0.35819309]
[1731083961832,0.7044241,2914.4,2912.8,4.06394332]
[1731083962036,0.7044241,2914.4,2912.6,0.8201]
[1731083962285,0.7044241,2914.4,2912.4,4.06394332]
[1731083962569,0.6358,2914.1,2912.4,4.06394332]
[1731083962733,0.01,2914.6,2912.4,4.06394332]
[1731083962734,0.7044241,2914.0,2912.5,0.06864989]
[1731083963246,0.7044241,2914.0,2912.4,4.06394332]
[1731083963758,0.7044241,2914.0,2912.5,0.06865553]
[1731083965371,0.7044241,2914.0,2912.6,0.55]
[1731083965682,0.7044241,2914.0,2912.8,0.55]
[1731083965877,0.7044241,2914.0,2913.0,0.55]
[1731083966934,0.7044241,2914.0,2912.4,4.06394332]
[1731083967347,0.7044241,2914.0,2912.5,0.55]
[1731083967536,0.7044241,2914.0,2912.7,0.55]
[1731083967736,0.7044241,2914.0,2912.8,0.06864706]
[1731083968771,0.7044241,2914.0,2912.7,0.55]
[1731083968998,0.7044241,2914.0,2912.8,0.06864634]
[1731083969377,0.7044241,2914.0,2912.9,0.55]
[1731083969704,0.7044241,2914.0,2913.0,0.06864368]
[1731083970974,0.7044241,2914.0,2912.9,0.55]
[1731083971201,0.7044241,2914.0,2912.4,4.06394332]
[1731083971992,0.7044241,2914.0,2912.5,0.06864946]
[1731083972624,0.7044241,2914.0,2912.6,0.55]
[1731083972916,0.7044241,2914.0,2912.7,0.06864946]
[1731083973237,0.7044241,2914.0,2912.9,0.7748]
[1731083973524,0.6358,2914.0,2913.3,0.55]
[1731083975219,0.6358,2914.0,2912.9,0.7748]
[1731083975220,0.6358,2914.0,2913.5,0.55]
[1731083975415,0.6358,2914.0,2913.7,0.55]
[1731083975626,0.6358,2914.0,2913.8,0.06862792]
[1731083975806,0.6358,2915.3,2913.9,0.55]
[1731083976121,0.6358,2915.1,2914.0,0.06862081]
[1731083976287,0.6358,2914.9,2913.7,0.55]
[1731083977819,0.6358,2914.7,2913.6,0.55]
[1731083978315,0.6358,2914.5,2913.6,0.55]
[1731083978819,0.6358,2914.5,2913.7,0.06862603]
[1731083979019,0.6358,2914.5,2913.8,1.3178]
[1731083979224,0.6358,2915.1,2914.0,0.55]
[1731083979578,0.6358,2915.1,2913.9,0.55]
[1731083980191,0.6358,2914.9,2913.9,0.55]
[1731083980610,0.7044241,2914.8,2914.0,0.06861904]
[1731083980791,0.7044241,2914.8,2913.6,0.55]
[1731083981011,0.7044241,2914.8,2913.5,0.55]
[1731083981185,0.7044241,2914.8,2913.7,0.55]
[1731083981524,0.7044241,2914.8,2913.5,0.55]
[1731083982080,0.7044241,2914.8,2913.7,0.55]
[1731083982279,0.7044241,2914.8,2913.8,0.06862585]
[1731083982787,0.7044241,2914.8,2913.7,0.55]
[1731083982985,0.7044241,2914.8,2913.8,0.06862538]
[1731083983529,0.6358,2914.8,2913.9,0.55]
[1731083984197,0.6358,2914.8,2914.0,0.0686183]
[1731083984384,0.6358,2914.8,2914.1,0.55]
[1731083984583,0.6358,2914.8,2914.3,0.55]
[1731083984819,0.6358,2915.3,2914.5,0.55]
[1731083985030,0.6358,2915.3,2914.6,0.06860535]
[1731083986128,0.6358,2915.3,2914.7,0.55]
[1731083987425,0.6358,2915.3,2914.8,0.0686016]
[1731083988189,0.6358,2915.3,2914.9,0.55]
[1731083988419,0.6258,2916.1,2915.0,0.0686003]
[1731083988623,0.0686241,2916.0,2915.0,0.0686003]
[1731083988827,0.0686241,2916.0,2914.9,0.55]
[1731083989138,0.0686241,2916.4,2915.0,0.06859643]
[1731083989345,0.30686241,2916.3,2914.9,0.55]
[1731083989531,0.0686241,2916.2,2914.9,0.55]
[1731083989687,0.0686241,2916.2,2915.0,0.06859724]
[1731083990023,0.0686241,2916.2,2915.0,0.06859718]
[1731083990192,0.0686241,2916.2,2914.9,0.55]
[1731083990609,0.0686241,2916.2,2915.1,0.55]
[1731083990845,0.01,2916.9,2915.3,0.55]
[1731083990846,0.0686241,2916.9,2915.3,0.55]
[1731083991127,0.0686241,2916.9,2915.4,0.06858652]
[1731083991324,0.0686241,2916.9,2915.5,0.55]
[1731083991533,0.6258,2916.8,2915.6,0.06858445]
[1731083991744,0.6258,2916.6,2915.6,0.06858445]
[1731083991888,0.6258,2916.6,2915.7,0.55]
[1731083992097,0.6258,2916.6,2915.8,0.06857814]
[1731083992307,0.6258,2916.6,2915.9,0.55]
[1731083992505,0.6258,2916.6,2916.0,0.06857293]
[1731083992928,0.6258,2916.6,2915.7,4.06394332]
[1731083992929,0.6258,2916.6,2915.7,0.55]
[1731083993496,0.6258,2916.6,2915.3,4.83524332]
[1731083993729,0.6258,2916.6,2915.4,0.61858054]
[1731083995026,0.6258,2916.6,2915.7,4.06394332]
[1731083995226,0.6258,2916.6,2915.8,0.06857537]
[1731083995614,0.6258,2916.6,2915.9,0.55]
[1731083995824,0.6258,2916.6,2916.1,0.55]
[1731083996328,0.6258,2916.6,2916.2,0.06856963]
[1731083997430,3.0686241,2917.7,2916.2,0.06856988]
[1731083997431,0.6258,2917.6,2916.2,0.06856988]
[1731083997637,0.6944241,2917.5,2916.3,0.55]
[1731083997833,0.6944241,2917.5,2916.4,0.06855783]
[1731083998040,0.6944241,2917.5,2916.5,0.55]
[1731083998244,0.6944241,2917.5,2916.6,0.06856089]
[1731083998750,0.6258,2917.5,2916.7,0.55]
[1731083999492,0.6258,2917.5,2916.8,0.06855594]
[1731083999648,0.6258,2917.5,2916.7,0.55]
[1731083999856,0.6258,2917.5,2916.1,4.86294332]
[1731084000212,0.6258,2917.5,2916.2,0.6185578]
[1731084001427,0.6258,2917.5,2916.2,0.61855782]
[1731084002923,0.6258,2917.5,2916.2,0.55]
[1731084003113,0.6258,2917.5,2916.4,0.55]
[1731084003644,0.6258,2917.5,2916.2,0.55]
[1731084003857,0.6944241,2917.4,2915.8,0.7776]
[1731084004144,0.6258,2917.3,2915.6,4.06394332]
[1731084004344,0.6258,2917.1,2916.0,4.06394332]
[1731084004552,0.6258,2917.1,2916.1,0.88956698]
[1731084005127,0.6258,2917.1,2916.5,4.06394332]
[1731084005326,0.6258,2917.1,2916.6,0.06855664]
[1731084005633,0.6258,2917.1,2916.2,0.55]
[1731084007067,0.6258,2917.1,2915.8,0.8267]
[1731084007280,0.6258,2917.1,2915.5,0.8267]
[1731084007568,0.6258,2916.9,2915.5,0.8267]
[1731084007733,0.6258,2916.7,2915.3,4.06394332]
[1731084008783,0.6258,2916.7,2915.4,0.55]
[1731084010648,0.6258,2916.7,2915.5,0.06857589]
[1731084011552,0.6258,2916.5,2914.9,4.86684332]
[1731084011750,0.6258,2916.3,2914.9,4.86684332]
[1731084011962,0.6258,2916.1,2915.0,0.06858948]
[1731084012173,0.6258,2916.1,2915.3,4.06394332]
[1731084012383,0.6258,2916.1,2915.4,0.06857781]
[1731084012683,0.6258,2916.1,2915.7,4.06394332]
[1731084012888,0.6258,2917.2,2915.9,0.55]
[1731084013178,0.6258,2917.0,2916.1,4.61394332]
[1731084013339,0.6258,2917.0,2916.2,0.06856616]
[1731084013539,0.6258,2917.0,2916.1,4.61394332]
[1731084013741,0.6258,2917.0,2916.2,0.06856998]
[1731084014783,0.6258,2917.0,2916.1,4.61394332]
[1731084015577,0.6258,2917.0,2916.2,0.06856808]
[1731084015738,0.6258,2917.0,2916.3,0.55]
[1731084016072,0.6258,2917.0,2916.1,4.06394332]
[1731084016292,0.6258,2917.0,2916.2,0.55]
[1731084017438,0.6258,2917.0,2915.7,4.06394332]
[1731084017643,0.6258,2917.0,2915.8,0.55]
[1731084018285,0.6258,2917.0,2915.7,4.06394332]
[1731084018286,0.6258,2917.0,2916.0,0.55]
[1731084018746,0.6258,2916.8,2915.8,0.55]
[1731084019487,0.6258,2916.8,2915.7,0.55]
[1731084019958,0.6258,2916.8,2915.6,3.29916317]
[1731084020291,0.6258,2916.6,2915.7,0.06857611]
[1731084020461,3.0,2917.1,2915.3,3.29916317]
[1731084020462,0.6258,2916.4,2915.4,0.06858599]
[1731084021407,0.6258,2916.4,2915.2,0.35711866]
[1731084021554,0.6258,2916.2,2915.2,0.35711866]
[1731084021758,0.6258,2916.0,2914.7,3.29916317]
[1731084022393,6.97492872,2916.7,2914.7,3.29916317]
[1731084022394,0.6258,2915.8,2914.7,3.29916317]
[1731084022610,0.6258,2915.6,2914.4,3.29916317]
[1731084022891,0.6258,2915.6,2915.3,3.29916317]
[1731084023076,0.6258,2916.7,2915.4,0.06859185]
[1731084023281,0.6944241,2916.6,2915.4,0.06859185]
[1731084023457,0.6944241,2916.6,2915.3,3.29916317]
[1731084023803,0.6944241,2916.6,2915.5,0.55]
[1731084023963,0.6944241,2916.6,2915.4,0.55]
[1731084024703,0.6944241,2916.6,2915.3,3.29916317]
[1731084024869,0.6944241,2916.6,2915.5,0.06858294]
[1731084025199,0.6258,2916.6,2915.6,3.29916317]
[1731084025361,0.6258,2916.4,2915.3,3.29916317]
[1731084025560,0.01,2917.1,2915.3,3.29916317]
[1731084025561,0.6258,2916.2,2915.3,3.29916317]
[1731084025765,0.6258,2916.2,2915.0,3.29916317]
[1731084026061,0.6258,2916.2,2914.9,0.55]
[1731084026271,0.6258,2916.2,2914.7,3.29916317]
[1731084026272,0.6944241,2916.1,2914.8,0.55]
[1731084026771,0.6944241,2916.1,2914.7,3.29916317]
[1731084027109,0.6944241,2916.1,2914.8,0.0686008]
[1731084027262,0.6944241,2916.1,2914.7,3.29916317]
[1731084027599,0.6944241,2916.1,2914.5,0.35717893]
[1731084027796,0.6258,2915.9,2914.5,0.35717893]
[1731084028003,0.36944241,2916.0,2914.5,0.35717893]
[1731084028004,0.6944241,2915.8,2914.5,0.35717893]
[1731084028418,0.6944241,2915.8,2914.6,0.06860456]
[1731084029916,0.6944241,2915.8,2914.5,0.35717893]
[1731084030125,3.6258,2915.6,2914.5,0.35717893]
[1731084030408,0.6258,2915.4,2913.7,3.65731008]
[1731084030614,0.6258,2915.2,2913.7,4.01399754]
[1731084030815,0.36258,2915.5,2913.7,4.01399754]
[1731084030816,0.6258,2915.0,2913.7,4.01399754]
[1731084031005,0.6258,2915.0,2914.0,3.29916317]
[1731084031174,0.6258,2915.0,2914.3,3.29916317]
[1731084031372,0.6258,2915.0,2913.7,0.71483437]
[1731084031373,0.6258,2915.0,2914.0,3.29916317]
[1731084032003,0.6258,2915.0,2914.1,0.61861336]
[1731084032323,0.6258,2915.0,2914.1,0.55]
[1731084033479,0.6258,2915.0,2913.7,0.71483437]
[1731084033480,0.6258,2915.0,2914.2,0.06861639]
[1731084033819,0.6258,2915.0,2914.3,3.29916317]
[1731084034007,0.6258,2915.0,2914.4,0.06861585]
[1731084035180,0.6258,2915.0,2914.5,3.29916317]
[1731084035531,0.6258,2915.0,2914.6,0.06860862]
[1731084036384,0.6258,2915.0,2914.5,3.29916317]
[1731084036810,0.6258,2915.0,2914.6,0.06860884]
[1731084037831,0.6258,2915.0,2914.6,0.06860926]
[1731084038381,0.6258,2916.1,2914.7,0.55]
[1731084038687,0.18119475,2916.3,2914.7,0.55]
[1731084038688,0.6258,2915.9,2914.7,0.55]
[1731084038922,0.35679638,2916.4,2914.8,0.06859745]
[1731084038923,0.6258,2915.7,2914.8,0.06859745]
[1731084039218,0.6258,2915.7,2914.9,0.06859745]
[1731084040215,0.6258,2915.7,2914.8,0.55]
[1731084040525,0.6258,2915.7,2914.6,0.55]
[1731084040884,0.6258,2915.7,2914.9,0.55]
[1731084042481,0.6258,2915.7,2914.5,3.29916317]
[1731084042682,0.6258,2915.7,2914.9,0.55]
[1731084043131,3.0,2916.2,2914.2,4.10836317]
[1731084043132,0.6944241,2915.6,2914.2,4.10836317]
[1731084043376,0.6944241,2915.6,2914.2,3.29916317]
[1731084044121,0.6258,2915.6,2914.9,4.09706317]
[1731084044364,0.6258,2915.6,2915.1,0.55]
[1731084044530,0.6258,2915.6,2915.2,0.06859436]
[1731084045150,0.6258,2915.6,2914.5,0.55]
[1731084045658,0.6258,2915.6,2914.7,0.55]
[1731084045962,0.6258,2915.6,2914.9,4.66486317]
[1731084046772,0.6258,2915.6,2914.9,3.84916317]
[1731084046951,0.6258,2915.6,2914.6,3.29916317]
[1731084048467,0.6258,2915.6,2914.8,0.55]
[1731084048626,0.6258,2915.6,2914.9,0.06860036]
[1731084050965,0.6258,2915.6,2914.4,0.55]
[1731084051496,0.6258,2915.6,2914.3,4.12716317]
[1731084051497,0.6258,2915.6,2914.6,0.55]
[1731084051657,0.6258,2915.6,2914.7,0.06860435]
[1731084052334,0.6258,2915.6,2914.8,0.55]
[1731084052536,0.6258,2915.6,2914.9,0.06859752]
[1731084053549,0.6258,2915.6,2914.8,0.55]
[1731084053750,0.6258,2915.6,2914.9,0.0685991]
[1731084054627,0.6258,2915.6,2914.6,3.84916317]
[1731084054774,0.6258,2915.6,2914.8,0.55]
[1731084055079,0.6258,2915.6,2914.6,3.84916317]
[1731084056667,0.6258,2915.6,2914.3,0.828]
[1731084056881,0.6258,2915.6,2914.2,0.35648759]
[1731084056882,0.6258,2915.4,2914.2,3.65565076]
[1731084057088,0.6258,2915.2,2914.2,0.35648759]
[1731084057378,0.6258,2915.2,2914.2,3.65565076]
[1731084057578,0.6944241,2915.1,2914.2,0.35648759]
[1731084057780,0.6944241,2915.1,2913.6,3.29916317]
[1731084060144,0.6258,2915.0,2913.3,3.29916317]
[1731084060403,0.6944241,2914.9,2913.3,3.29916317]
[1731084060753,0.6944241,2914.9,2913.4,0.06863164]
[1731084061344,0.6944241,2914.9,2913.9,3.29916317]
[1731084061679,0.6944241,2914.9,2913.7,0.55]
[1731084061983,0.6944241,2914.9,2913.8,0.06862645]
[1731084063074,0.6944241,2914.9,2913.9,3.29916317]
[1731084063276,0.6944241,2914.9,2913.3,3.65574446]
[1731084063513,0.6944241,2914.9,2913.4,0.55]
[1731084064168,0.6944241,2914.9,2913.6,3.29916317]
[1731084064368,0.6944241,2914.9,2913.7,0.06862825]
[1731084065505,0.6944241,2914.9,2913.6,3.29916317]
[1731084065806,0.6258,2914.8,2913.3,0.55]
[1731084065963,3.92496317,2914.6,2913.2,0.35815483]
[1731084066165,3.29916317,2914.3,2912.4,3.29916317]
[1731084066407,0.6258,2914.1,2912.4,3.29916317]
[1731084066608,0.6944241,2914.0,2912.4,3.29916317]
[1731084067101,0.6258,2913.9,2912.4,3.29916317]
[1731084067308,0.46462088,2914.0,2912.4,3.29916317]
[1731084067309,0.6258,2913.7,2912.4,3.29916317]
[1731084067522,0.0686241,2913.6,2912.4,3.54710955]
[1731084067672,0.6258,2913.5,2912.4,3.54710955]
[1731084067871,0.6258,2913.3,2912.4,3.54710955]
[1731084068068,0.6258,2913.3,2912.5,0.06865597]
[1731084068268,0.6258,2913.3,2912.4,3.29916317]
[1731084068707,0.6258,2913.3,2912.5,0.83835691]
[1731084068876,0.6258,2913.3,2912.7,3.29916317]
[1731084071026,0.6258,2913.3,2912.4,3.65558978]
[1731084071169,0.6258,2913.3,2912.4,3.29916317]
[1731084071869,0.6258,2913.1,2912.4,3.29916317]
[1731084073209,0.6258,2913.1,2912.5,0.06866107]
[1731084073425,0.6258,2913.1,2912.7,3.29916317]
[1731084073870,0.6258,2913.1,2912.4,0.35659682]
[1731084074270,0.6258,2913.1,2912.0,3.29916317]
[1731084074575,0.6258,2913.1,2912.3,3.29916317]
[1731084074795,0.6258,2913.1,2912.4,0.06866412]
[1731084075215,0.6258,2913.1,2912.6,3.29916317]
[1731084075532,0.6258,2913.1,2912.7,0.06865587]
[1731084077085,0.6258,2913.1,2912.6,3.29916317]
[1731084077292,0.6258,2913.1,2912.4,0.55]
[1731084077495,0.6258,2913.1,2912.3,3.29916317]
[1731084077750,0.6258,2913.1,2912.4,0.06866125]
[1731084079004,0.0786241,2913.9,2912.4,0.06866125]
[1731084079005,0.6258,2913.4,2912.5,0.8255]
[1731084079208,0.6258,2913.4,2912.6,3.36782438]
[1731084081396,0.6258,2913.4,2913.0,0.55]
[1731084081610,0.6258,2913.4,2913.1,0.06864444]
[1731084081831,0.6258,2914.1,2913.1,0.06864444]
[1731084082033,0.0686241,2914.0,2913.1,0.06864444]
[1731084082338,0.6258,2914.1,2913.1,0.84484444]
[1731084082500,0.6258,2914.1,2913.0,0.55]
[1731084082701,0.6258,2914.1,2912.8,0.7762]
[1731084083031,0.6258,2913.9,2912.7,0.55]
[1731084083334,0.6258,2913.7,2912.8,0.06864667]
[1731084083940,0.6258,2913.7,2912.9,3.84916317]
[1731084084108,0.41099678,2914.8,2913.2,3.84916317]
[1731084084443,0.6258,2914.5,2913.4,3.29916317]
[1731084084755,0.6258,2914.3,2913.2,0.55]
[1731084084964,0.6258,2914.3,2913.4,0.55]
[1731084085120,0.6258,2914.3,2913.5,0.06863178]
[1731084085328,0.6258,2914.3,2913.6,0.55]
[1731084085529,0.6258,2914.3,2913.7,0.06862801]
[1731084085760,0.6258,2914.3,2913.6,0.55]
[1731084086057,0.6258,2914.3,2913.7,0.06862802]
[1731084086418,0.6258,2914.3,2913.6,0.55]
[1731084086618,0.6258,2914.3,2913.7,0.06862803]
[1731084087121,0.6258,2914.3,2913.5,0.55]
[1731084087333,0.6258,2914.3,2913.6,0.06862804]
[1731084087643,0.6258,2914.3,2913.5,0.55]
[1731084087847,0.6258,2914.3,2913.6,0.06862804]
[1731084088060,0.6258,2914.3,2913.7,0.55]
[1731084088474,0.6258,2914.3,2913.5,0.55]
[1731084088834,0.6258,2914.3,2913.1,0.8237]
[1731084088835,0.6258,2914.3,2913.7,3.84916317]
[1731084089035,0.6258,2914.3,2913.8,0.06862333]
[1731084089547,0.6258,2915.2,2913.9,0.55]
[1731084089758,3.0,2915.4,2913.9,0.55]
[1731084089759,0.6258,2915.0,2914.0,0.06862168]
[1731084089961,0.6258,2915.0,2914.3,3.29916317]
[1731084090264,0.6258,2915.0,2914.4,0.55]
[1731084091052,0.6258,2915.0,2914.3,0.55]
[1731084091525,0.6258,2915.0,2914.5,0.55]
[1731084091740,0.6258,2915.0,2914.3,3.84916317]
[1731084092246,0.6258,2915.7,2914.9,3.29916317]
[1731084092450,0.6258,2915.7,2915.2,3.29916317]
[1731084092648,0.6258,2915.7,2915.3,0.06859817]
[1731084092960,0.6258,2915.7,2915.5,3.29916317]
[1731084093162,0.6258,2916.6,2915.6,0.06858883]
[1731084093365,0.0686241,2916.5,2915.6,0.06858883]
[1731084093687,0.6258,2916.4,2915.6,0.06858883]
[1731084094244,0.6258,2916.4,2915.5,3.29916317]
[1731084094485,0.6258,2916.4,2915.2,3.29916317]
[1731084094698,0.6258,2916.2,2915.2,3.29916317]
[1731084095694,0.6258,2916.2,2915.3,0.06858942]
[1731084096545,0.6258,2916.2,2915.2,3.29916317]
[1731084097174,0.6258,2916.2,2914.9,3.84916317]
[1731084097377,0.66850885,2916.7,2914.9,3.84916317]
[1731084097378,0.6258,2916.0,2914.9,3.29916317]
[1731084097576,0.6258,2915.8,2915.0,0.0685895]
[1731084098772,0.6258,2915.8,2915.2,3.29916317]
[1731084098968,0.6258,2915.8,2915.3,0.06859146]
[1731084099377,0.6258,2915.8,2915.2,3.29916317]
[1731084099804,0.6258,2915.8,2915.3,0.06859148]
[1731084100317,0.6258,2915.8,2915.2,3.29916317]
[1731084100626,0.6258,2915.8,2915.3,0.06858627]
[1731084100921,0.6258,2915.8,2915.2,3.29916317]
[1731084101088,0.6258,2915.8,2914.9,3.29916317]
[1731084101291,0.6258,2915.8,2915.1,0.55]
[1731084101518,0.6258,2915.8,2915.2,3.36775236]
[1731084102886,0.6258,2915.8,2915.2,3.29916317]
[1731084103418,0.6258,2915.8,2914.9,3.84916317]
[1731084105544,0.6258,2915.8,2914.6,4.11476317]
[1731084106321,0.6258,2915.8,2914.9,3.29916317]
[1731084106829,0.6258,2915.8,2914.6,4.11476317]
[1731084107149,0.6258,2915.8,2914.7,0.55]
[1731084108152,0.6258,2915.8,2914.8,0.06859806]
[1731084108304,0.6258,2915.8,2914.7,0.55]
[1731084110852,0.6258,2915.6,2914.3,3.29916317]
[1731084111158,0.6258,2915.4,2914.3,3.29916317]
[1731084116664,0.6258,2915.2,2914.0,3.29916317]
[1731084116829,0.6944241,2915.1,2914.0,3.29916317]
[1731084117034,0.6944241,2915.1,2913.8,0.35667514]
[1731084117335,0.6944241,2915.1,2913.7,3.29916317]
[1731084117517,0.6944241,2915.1,2913.8,0.0686267]
[1731084119864,0.6944241,2915.1,2913.4,3.65733611]
[1731084120033,3.0,2915.0,2913.4,3.65733611]
[1731084120234,0.6258,2914.8,2913.5,0.0686317]
[1731084120562,0.6944241,2914.7,2913.5,0.0686317]
[1731084120764,0.6944241,2914.7,2913.4,3.65733611]
[1731084121069,0.6944241,2914.7,2913.4,0.35817294]
[1731084121241,0.6258,2914.6,2913.4,0.35817294]
[1731084121573,0.6258,2914.4,2912.8,3.65576365]
[1731084121727,0.6258,2914.2,2913.0,0.35827752]
[1731084121927,0.6944241,2914.1,2912.8,3.65576365]
[1731084122560,0.6944241,2914.1,2912.9,0.06864919]
[1731084123327,0.6944241,2914.1,2913.1,3.29916317]
[1731084124157,0.6944241,2914.1,2913.2,0.06864188]
[1731084124471,0.6944241,2914.1,2913.1,3.29916317]
[1731084125263,0.6944241,2914.1,2912.8,0.35662253]
[1731084125264,0.6258,2914.1,2913.4,3.29916317]
[1731084125764,0.6258,2914.1,2913.1,3.84916317]
[1731084126075,0.01,2914.9,2912.8,3.6557857]
[1731084126076,0.6258,2913.9,2912.8,3.6557857]
[1731084126479,0.6258,2913.7,2912.8,3.6557857]
[1731084127076,0.6258,2913.7,2912.8,0.35662253]
[1731084127374,0.6258,2913.7,2912.9,0.06864882]
[1731084128692,0.6944241,2913.6,2912.9,0.06864882]
[1731084129350,0.6944241,2913.6,2912.8,3.29916317]
[1731084129555,0.6258,2913.6,2912.8,3.29916317]
[1731084129882,0.6258,2913.6,2912.9,0.06865242]
[1731084130887,0.6258,2913.6,2913.1,3.29916317]
[1731084131236,0.6258,2913.6,2913.2,0.06863875]
[1731084131642,0.6258,2913.6,2913.1,3.29916317]
[1731084132069,0.6258,2914.0,2913.1,3.29916317]
[1731084132290,0.6258,2914.0,2913.4,3.29916317]
[1731084132574,0.6258,2914.0,2913.5,0.06863152]
[1731084132876,0.6258,2914.0,2913.1,3.29916317]
[1731084133388,0.6258,2914.0,2912.8,3.29916317]
[1731084133679,0.38532959,2914.7,2912.8,3.29916317]
[1731084133680,0.6258,2913.8,2912.8,3.29916317]
[1731084133886,0.6258,2913.8,2912.9,0.06864554]
[1731084134189,0.6258,2913.8,2912.8,3.29916317]
[1731084135778,0.6258,2913.8,2912.9,0.06864554]
[1731084136349,0.6258,2913.8,2912.9,0.55]
[1731084138617,0.6258,2913.8,2913.0,0.06864133]
[1731084138917,0.6258,2913.8,2912.9,0.55]
[1731084139423,0.6258,2913.8,2913.1,3.29916317]
[1731084139781,0.6258,2913.8,2913.2,0.06863602]
[1731084139983,0.6258,2913.8,2913.3,0.55]
[1731084140301,0.6258,2913.8,2913.2,0.55]
[1731084142724,0.6258,2913.8,2912.9,0.55]
[1731084144626,0.6258,2913.8,2912.8,3.29916317]
[1731084145660,0.6258,2913.8,2912.7,0.35653463]
[1731084145860,0.6944241,2913.7,2912.7,0.35653463]
[1731084146159,0.6944241,2913.7,2912.6,0.35830557]
[1731084146364,0.6944241,2913.7,2912.2,3.65559968]
[1731084146840,0.6944241,2913.7,2912.5,3.29916317]
[1731084147163,0.6944241,2913.7,2912.6,0.06865726]
[1731084147525,0.0686241,2913.6,2912.7,0.06865728]
[1731084147857,0.6944241,2914.2,2912.6,0.06865404]
[1731084148260,0.0686241,2914.1,2912.8,3.29916317]
[1731084148555,0.6258,2914.0,2912.9,0.06864464]
[1731084148765,0.6258,2914.0,2912.7,0.55]
[1731084148766,0.6258,2914.0,2913.1,3.29916317]
[1731084149063,0.6258,2914.0,2912.8,3.29916317]
[1731084149219,0.6258,2914.0,2912.9,0.55]
[1731084150941,0.6258,2914.0,2912.7,0.55]
[1731084151138,0.6258,2914.0,2912.8,3.29916317]
[1731084151384,0.6258,2914.0,2912.9,0.55]
[1731084152252,0.6258,2914.0,2912.8,3.29916317]
[1731084152464,0.6944241,2913.9,2912.6,0.55]
[1731084154297,0.6944241,2913.9,2912.8,3.29916317]
[1731084155163,0.6944241,2913.9,2912.9,0.06864691]
[1731084155954,0.6944241,2913.9,2912.8,3.29916317]
[1731084156381,0.6944241,2913.9,2912.9,0.06864692]
[1731084156691,0.6944241,2913.9,2912.8,3.29916317]
[1731084157197,0.6944241,2913.9,2912.9,0.06864692]
[1731084157493,0.6944241,2913.9,2912.9,0.55]
[1731084157993,0.6944241,2913.9,2912.9,0.61864245]
[1731084158194,0.6258,2913.9,2913.1,3.29916317]
[1731084158891,0.6258,2913.9,2913.2,0.06863845]
[1731084159047,0.6258,2913.9,2913.1,3.29916317]
[1731084159253,0.6258,2913.9,2913.2,0.55]
[1731084162511,0.6258,2913.9,2913.3,0.06863521]
[1731084162836,0.6258,2914.8,2913.7,3.29916317]
[1731084162987,0.6258,2914.8,2913.8,0.06862435]
[1731084163795,0.6258,2914.8,2912.8,3.0]
[1731084163796,0.6258,2914.6,2913.4,3.29916317]
[1731084164125,0.6258,2914.4,2913.4,3.29916317]
[1731084164291,0.6258,2914.4,2913.5,0.06863]
[1731084164633,0.6258,2914.4,2913.4,3.29916317]
[1731084165000,0.6258,2914.4,2912.6,2.96909559]
[1731084165195,3.0,2914.8,2912.5,0.19909914]
[1731084165196,0.6258,2914.2,2913.1,0.55]
[1731084169549,0.6258,2913.8,2912.6,0.35641116]
[1731084169842,0.6258,2913.6,2912.7,0.06865381]
[1731084170138,0.6258,2913.6,2912.1,4.46894321]
[1731084170139,0.6258,2913.4,2912.1,4.46894321]
[1731084170344,0.36258,2913.7,2912.1,4.46894321]
[1731084170345,0.6258,2913.2,2912.1,4.46894321]
[1731084170521,0.6258,2913.2,2912.2,0.06865377]
[1731084170718,0.6258,2913.2,2912.1,4.46894321]
[1731084170925,0.6258,2913.2,2912.1,4.82544363]
[1731084171520,0.6258,2913.2,2912.2,0.55]
[1731084171931,0.6258,2913.2,2912.4,0.55]
[1731084172137,0.6258,2913.2,2912.1,4.82544363]
[1731084172306,0.6258,2913.2,2912.1,3.65744321]
[1731084173365,0.0686241,2913.1,2912.1,0.35828004]
[1731084173656,0.6944241,2913.1,2912.1,0.35828004]
[1731084173945,0.6258,2912.9,2912.1,0.35828004]
[1731084174153,0.36944241,2913.0,2912.1,0.35828004]
[1731084174154,0.6944241,2912.8,2912.1,0.35828004]
[1731084174523,0.6944241,2912.8,2911.5,3.29916317]
[1731084175065,0.6944241,2912.8,2911.4,0.71502283]
[1731084175369,0.6258,2912.6,2911.4,0.71502283]
[1731084175552,0.6258,2912.4,2911.4,0.35845307]
[1731084175879,0.6258,2912.2,2911.4,0.35845307]
[1731084176082,0.6258,2912.0,2911.4,0.35845307]
[1731084176767,0.42316292,2912.4,2911.4,0.35845307]
[1731084176768,0.0686241,2911.9,2911.4,0.35845307]
[1731084176989,0.6258,2911.9,2911.4,0.35845307]